[Event "SVK Extraliga 2019-20"]
[Site "Slovakia"]
[Date "2020.01.19"]
[Round "6.4"]
[White "Hrabusa, Matej"]
[Black "Mosesov, Danylo"]
[Result "1/2-1/2"]
[ECO "B90"]
[WhiteElo "2364"]
[BlackElo "2382"]
[Annotator "NA"]
[PlyCount "84"]
[EventDate "2019.10.19"]
[EventType "team-tourn"]
[EventCountry "SVK"]
[SourceTitle "playchess.com"]
[Source "ChessBase"]
[SourceQuality "1"]
[WhiteTeam "Liptovska"]
[BlackTeam "Košice"]
[TimeControl "40/5400+30:1800+30"]

1. e4 {[%emt 0:00:00]} c5 {[%emt 0:00:00]} 2. Nf3 {[%emt 0:00:00]} d6 {[%emt 0:00:00]} 3. d4 {[%emt 0:00:00]} cxd4 {[%emt 0:00:00]} 4. Nxd4 {[%emt 0:00:00]} Nf6 {[%emt 0:00:00]} 5. Nc3 {[%emt 0:00:00]} a6 {[%emt 0:00:00]} 6. h3 {[%emt 0:00:29]} Nc6 {[%emt 0:00:33]} 7. g4 {[%emt 0:05:21] B90: Sicilian Najdorf: Unusual White 6th moves, 6 Be3 Ng4 and 6 Be3 e5} (7. Be3 e5 8. Nb3 Be6 9. Qf3 Be7 10. O-O-O O-O 11. g4 b5 12. Kb1 Nd7 13. Nd5 Rb8 14. h4 a5 15. g5 {1-0 (34) Caruana,F (2822)-Korobov,A (2670) Bucharest 2019}) 7... Qb6 {[%emt 0:00:05]} 8. Nb3 {[%emt 0:00:34]} e6 {[%emt 0:00:08]} 9. Be3 $146 {[%emt 0:00:54]} ({Predecessor:} 9. Bg2 Qc7 10. f4 b5 11. Be3 Be7 12. Qd2 Nd7 {½-½ (60) Li,C (2708)-Korobov,A (2685) Batumi 2018}) 9... Qc7 {[%emt 0:00:05]} 10. Qe2 {[%emt 0:03:07]} b5 {[%emt 0:02:06]} 11. Bg2 {[%emt 0:04:11]} Be7 {[%emt 0:01:46]} 12. f4 {[%emt 0:02:04]} Nd7 {[%emt 0:01:18]} 13. Qf2 {[%emt 0:02:13]} Rb8 {[%emt 0:00:20]} 14. O-O {[%emt 0:04:01]} O-O {[%emt 0:02:33]} 15. a3 {[%emt 0:04:39]} Re8 {[%emt 0:01:57]} 16. Rad1 {[%emt 0:01:22]} Nb6 {[%emt 0:02:08]} 17. Kh1 {[%emt 0:05:15]} Na4 {[%emt 0:07:39]} 18. Nxa4 {[%emt 0:09:52]} bxa4 {[%emt 0:00:04]} 19. Nd2 {[%emt 0:00:04]} Na5 {[%emt 0:09:26]} 20. Rb1 {[%emt 0:00:30]} Bd7 {[%emt 0:00:21]} 21. Bd4 {[%emt 0:04:40]} Rec8 {[%emt 0:04:21]} 22. Bc3 {[%emt 0:00:36]} Bb5 {[%emt 0:03:43]} 23. Rfe1 {[%emt 0:03:57]} Qd8 {[%emt 0:06:15]} 24. g5 $11 {[%emt 0:03:45]} Bf8 {[%emt 0:08:29]} 25. Rbd1 {[%emt 0:06:07]} Rxc3 {[%emt 0:07:56]} 26. bxc3 {[%emt 0:00:04]} Qc7 {[%emt 0:00:04]} 27. f5 {[%emt 0:09:29]} Qxc3 {[%emt 0:04:52]} 28. fxe6 {[%emt 0:02:19]} fxe6 {[%emt 0:00:05]} 29. Nf3 {[%emt 0:00:40]} Be7 {[%emt 0:06:17]} 30. e5 {[%emt 0:04:42]} d5 {[%emt 0:03:00]} 31. Nd4 {[%emt 0:02:21]} Rf8 {[%emt 0:11:34]} 32. Qh4 {[%emt 0:02:16]} Bd7 {[%emt 0:00:13]} 33. Qg4 {[%emt 0:03:25]} Qc8 {[%emt 0:13:25]} 34. h4 {[%emt 0:04:23]} Bxa3 {[%emt 0:01:48]} 35. Bh3 {[%emt 0:00:04]} Qc3 {[%emt 0:01:01]} 36. Rf1 {[%emt 0:00:58]} Nc4 {[%emt 0:01:20]} 37. Rxf8+ {[%emt 0:00:44]} Bxf8 {[%emt 0:00:01]} 38. Rf1 {[%emt 0:00:07]} Bc5 {[%emt 0:02:31]} 39. g6 {[%emt 0:04:24]} hxg6 {[%emt 0:00:22]} 40. Nxe6 {[%emt 0:02:38]} Nxe5 {[%emt 0:01:30]} 41. Qg2 {[%emt 0:33:55]} Bxe6 {[%emt 0:19:58]} 42. Bxe6+ {[%emt 0:00:00]} Kh7 {[%emt 0:00:02]} 1/2-1/2

[Event "SVK Extraliga 2019-20"]
[Site "Slovakia"]
[Date "2020.01.19"]
[Round "6.4"]
[White "Szustakowski, Antoni"]
[Black "Simacek, Pavel"]
[Result "0-1"]
[ECO "A61"]
[WhiteElo "2299"]
[BlackElo "2469"]
[Annotator "ChessBase"]
[PlyCount "168"]
[EventDate "2019.10.19"]
[EventType "team-tourn"]
[EventCountry "SVK"]
[SourceTitle "playchess.com"]
[Source "ChessBase"]
[SourceQuality "1"]
[WhiteTeam "Prakovce"]
[BlackTeam "Snina"]
[TimeControl "40/5400+30:1800+30"]

1. d4 {[%emt 0:04:00]} Nf6 {[%emt 0:00:00]} 2. c4 {[%emt 0:00:22]} c5 {[%emt 0:00:00]} 3. d5 {[%emt 0:00:15]} e6 {[%emt 0:00:00]} 4. Nc3 {[%emt 0:00:07]} exd5 {[%emt 0:00:00]} 5. cxd5 {[%emt 0:00:06]} d6 {[%emt 0:00:00]} 6. Nf3 {[%emt 0:00:06]} g6 {[%emt 0:00:10]} 7. Bf4 {[%emt 0:00:05]} a6 {[%emt 0:00:15]} 8. a4 {[%emt 0:00:05]} Bg7 {[%emt 0:00:03]} 9. h3 {[%emt 0:00:09]} O-O {[%emt 0:00:07]} 10. e3 {[%emt 0:00:04]} Re8 {[%emt 0:00:15]} 11. Be2 {[%emt 0:00:07]} Ne4 {[%emt 0:04:05]} 12. Nxe4 {[%emt 0:10:39]} Rxe4 {[%emt 0:04:03]} 13. Nd2 {[%emt 0:00:04]} Rb4 {[%emt 0:02:18]} 14. Nc4 {[%emt 0:07:28]} Bxb2 {[%emt 0:00:35]} 15. Nxb2 {[%emt 0:00:05]} Rxb2 {[%emt 0:00:04]} 16. O-O {[%emt 0:00:45]} Qf6 {[%emt 0:01:35]} 17. Bg4 {[%emt 0:10:36]} Nd7 {[%emt 0:00:42]} 18. Bxd7 {[%emt 0:00:08]} Bxd7 {[%emt 0:00:03]} 19. Qf3 {[%emt 0:00:10]} Re8 {[%emt 0:15:45]} 20. Qg3 {[%emt 0:01:07]} Rd2 {[%emt 0:00:28]} 21. e4 {[%emt 0:04:39]} Rd4 {[%emt 0:05:05]} 22. f3 {[%emt 0:22:53]} Rxa4 {[%emt 0:00:21]} 23. Rxa4 {[%emt 0:00:09]} Bxa4 {[%emt 0:00:03]} 24. Bxd6 {[%emt 0:00:09]} c4 {[%emt 0:01:19]} 25. Rc1 {[%emt 0:07:44]} Bb3 {[%emt 0:04:43]} 26. Bc5 {[%emt 0:02:40]} Qb2 {[%emt 0:13:31]} 27. Qe1 {[%emt 0:02:41]} Rc8 {[%emt 0:05:04]} 28. Bb4 {[%emt 0:00:27]} Qd4+ {[%emt 0:00:54]} 29. Qf2 {[%emt 0:01:18]} Qxf2+ {[%emt 0:01:22]} 30. Kxf2 {[%emt 0:00:03]} b6 {[%emt 0:00:08]} 31. Ke3 {[%emt 0:01:01]} a5 {[%emt 0:00:15]} 32. Bc3 {[%emt 0:00:03]} Kf8 {[%emt 0:00:33]} 33. Kd4 {[%emt 0:01:20]} Ke7 {[%emt 0:00:41]} 34. f4 {[%emt 0:06:27]} Ra8 {[%emt 0:03:36]} 35. Ra1 {[%emt 0:00:28]} Kd7 {[%emt 0:00:06]} 36. e5 {[%emt 0:02:31]} h5 {[%emt 0:08:29]} 37. g3 {[%emt 0:01:57]} a4 {[%emt 0:08:28]} 38. Ra3 {[%emt 0:03:58]} Ra7 {[%emt 0:09:12]} 39. g4 {[%emt 0:06:23]} hxg4 {[%emt 0:06:33]} 40. hxg4 {[%emt 0:00:04]} Bd1 {[%emt 0:00:18]} 41. Kxc4 {[%emt 0:33:37]} Bb3+ {[%emt 0:34:57]} 42. Kb5 {[%emt 0:03:28]} Bxd5 {[%emt 0:01:24]} 43. Kxb6 {[%emt 0:00:14]} Rc7 {[%emt 0:00:34]} 44. f5 {[%emt 0:00:00]} Bb3 {[%emt 0:00:00]} 45. Ba1 {[%emt 0:00:00]} Rc4 {[%emt 0:00:00]} 46. e6+ {[%emt 0:00:00]} fxe6 {[%emt 0:00:00]} 47. fxe6+ {[%emt 0:00:00]} Kxe6 {[%emt 0:00:00]} 48. g5 {[%emt 0:00:00]} Kd5 {[%emt 0:00:00]} 49. Kb5 {[%emt 0:00:00]} Rc8 {[%emt 0:00:00]} 50. Kb4 {[%emt 0:00:00]} Rb8+ {[%emt 0:00:00]} 51. Kc3 {[%emt 0:00:00]} Ke4 {[%emt 0:00:00]} 52. Kd2 {[%emt 0:00:00]} Rd8+ {[%emt 0:00:00]} 53. Ke2 {[%emt 0:00:00]} Rd3 {[%emt 0:00:00]} 54. Kf2 {[%emt 0:00:00]} Kf4 {[%emt 0:00:00]} 55. Bf6 {[%emt 0:00:00]} Rd2+ {[%emt 0:00:00]} 56. Kf1 {[%emt 0:00:00]} Kf3 {[%emt 0:00:00]} 57. Ra1 {[%emt 0:00:00]} Rh2 {[%emt 0:00:00]} 58. Kg1 {[%emt 0:00:00]} Rg2+ {[%emt 0:00:00]} 59. Kf1 {[%emt 0:00:00]} Rf2+ {[%emt 0:00:29]} 60. Ke1 {[%emt 0:00:00]} Re2+ {[%emt 0:01:13]} 61. Kf1 {[%emt 0:00:00]} Rh2 {[%emt 0:01:29]} 62. Kg1 {[%emt 0:00:00]} Rg2+ {[%emt 0:00:08]} 63. Kf1 {[%emt 0:00:00]} Bc4+ {[%emt 0:00:07]} 64. Ke1 {[%emt 0:00:00]} Ke3 {[%emt 0:00:30]} 65. Kd1 {[%emt 0:01:18]} Bb3+ {[%emt 0:00:42]} 66. Kc1 {[%emt 0:00:04]} Rc2+ {[%emt 0:00:12]} 67. Kb1 {[%emt 0:01:12]} Kd3 {[%emt 0:00:14]} 68. Ra3 {[%emt 0:01:01]} Re2 {[%emt 0:00:05]} 69. Bg7 {[%emt 0:01:45]} Kc4 {[%emt 0:00:17]} 70. Ra1 {[%emt 0:00:37]} Rc2 {[%emt 0:01:48]} 71. Bf6 {[%emt 0:00:47]} Kb5 {[%emt 0:00:15]} 72. Be5 {[%emt 0:01:16]} Re2 {[%emt 0:00:40]} 73. Bg7 {[%emt 0:00:08]} Rg2 {[%emt 0:03:44]} 74. Bf6 {[%emt 0:00:05]} Rc2 {[%emt 0:00:03]} 75. Be5 {[%emt 0:00:49]} Kc6 {[%emt 0:01:55]} 76. Bf6 {[%emt 0:01:00]} Kd6 {[%emt 0:00:04]} 77. Ra3 {[%emt 0:00:42]} Kd5 {[%emt 0:00:11]} 78. Ra1 {[%emt 0:01:53]} Kc4 {[%emt 0:01:23]} 79. Bg7 {[%emt 0:00:16]} Re2 {[%emt 0:01:40]} 80. Kc1 {[%emt 0:00:47]} Ba2 {[%emt 0:00:23]} 81. Kd1 {[%emt 0:01:12]} Kd3 {[%emt 0:00:05]} 82. Bf8 {[%emt 0:01:38]} a3 {[%emt 0:01:21]} 83. Bxa3 {[%emt 0:01:02]} Rh2 {[%emt 0:00:06]} 84. Kc1 {[%emt 0:01:44]} Kc3 {[%emt 0:00:06]} 0-1

[Event "SVK Extraliga 2019-20"]
[Site "Slovakia"]
[Date "2020.01.19"]
[Round "6.4"]
[White "Rohacek, Miroslav"]
[Black "Vass, Frantisek"]
[Result "1/2-1/2"]
[ECO "D06"]
[WhiteElo "2205"]
[BlackElo "2306"]
[Annotator "NA"]
[PlyCount "61"]
[EventDate "2019.10.19"]
[EventType "team-tourn"]
[EventCountry "SVK"]
[SourceTitle "playchess.com"]
[Source "ChessBase"]
[SourceQuality "1"]
[WhiteTeam "Bratislava"]
[BlackTeam "Podhajska"]
[TimeControl "40/5400+30:1800+30"]

1. d4 {[%emt 0:00:15]} d5 {[%emt 0:00:00]} 2. c4 {[%emt 0:00:22]} Bf5 {[%emt 0:00:08]} 3. cxd5 {[%emt 0:02:12]} Bxb1 {[%emt 0:00:17]} 4. Qa4+ {[%emt 0:01:11]} c6 {[%emt 0:00:16]} 5. Rxb1 {[%emt 0:00:09]} Qxd5 {[%emt 0:00:05]} 6. Nf3 {[%emt 0:02:32]} Nd7 {[%emt 0:02:03]} 7. e3 {[%emt 0:05:16]} Ngf6 {[%emt 0:05:12]} 8. Bd2 {[%emt 0:03:28]} e6 {[%emt 0:03:02]} 9. Be2 {[%emt 0:06:00]} Ne4 {[%emt 0:02:21]} 10. Bb4 {[%emt 0:14:07]} Nb6 {[%emt 0:01:41]} 11. Qa5 {[%emt 0:04:31]} Bd6 {[%emt 0:28:43]} 12. O-O {[%emt 0:03:33]} O-O {[%emt 0:01:49]} 13. Bd3 {[%emt 0:04:03]} Nc4 {[%emt 0:11:20]} 14. Bxc4 {[%emt 0:09:54]} Qxc4 {[%emt 0:00:52]} 15. Bxd6 {[%emt 0:00:31]} Nxd6 {[%emt 0:00:05]} 16. Rfc1 {[%emt 0:06:55]} Qd5 {[%emt 0:09:17]} 17. Rc5 {[%emt 0:02:34]} Qe4 {[%emt 0:00:32]} 18. Qe1 {[%emt 0:01:05]} Rfd8 {[%emt 0:04:34]} 19. Rbc1 {[%emt 0:04:51]} h6 {[%emt 0:00:51]} 20. Ne5 {[%emt 0:03:51]} Nf5 {[%emt 0:03:12]} 21. Qc3 {[%emt 0:02:47]} Rd5 {[%emt 0:03:45]} 22. b4 {[%emt 0:02:32]} f6 {[%emt 0:07:25]} 23. Nf3 {[%emt 0:03:24]} Rad8 {[%emt 0:02:59]} 24. h3 {[%emt 0:06:32]} Nd6 {[%emt 0:01:57]} 25. a4 {[%emt 0:00:51]} a6 {[%emt 0:00:09]} 26. Qc2 {[%emt 0:02:29]} Qxc2 {[%emt 0:01:05]} 27. R1xc2 {[%emt 0:00:36]} Ne4 {[%emt 0:00:25]} 28. R5c4 {[%emt 0:00:54]} Nd6 {[%emt 0:00:06]} 29. Rc5 {[%emt 0:00:54]} Ne4 {[%emt 0:00:05]} 30. R5c4 {[%emt 0:01:27]} Nd6 {[%emt 0:00:36]} 31. Rc5 {[%emt 0:01:02]} 1/2-1/2

[Event "SVK Extraliga 2019-20"]
[Site "Slovakia"]
[Date "2020.01.19"]
[Round "6.5"]
[White "Mrva, Martin"]
[Black "Jacko, Vladimir"]
[Result "0-1"]
[ECO "C41"]
[WhiteElo "2395"]
[BlackElo "2312"]
[Annotator "NA"]
[PlyCount "128"]
[EventDate "2019.10.19"]
[EventType "team-tourn"]
[EventCountry "SVK"]
[SourceTitle "playchess.com"]
[Source "ChessBase"]
[SourceQuality "1"]
[WhiteTeam "Snina"]
[BlackTeam "Prakovce"]
[TimeControl "40/5400+30:1800+30"]

1. e4 {[%emt 0:00:00]} e5 {[%emt 0:01:03]} 2. Nf3 {[%emt 0:00:00]} d6 {[%emt 0:01:04]} 3. d4 {[%emt 0:00:20]} exd4 {[%emt 0:00:19]} 4. Nxd4 {[%emt 0:00:10]} Nf6 {[%emt 0:00:38]} 5. Nc3 {[%emt 0:00:09]} g6 {[%emt 0:00:22]} 6. Be3 {[%emt 0:08:46]} Bg7 {[%emt 0:00:07]} 7. Qd2 {[%emt 0:00:19]} O-O {[%emt 0:00:48]} 8. O-O-O {[%emt 0:00:23]} Re8 {[%emt 0:08:19]} 9. f3 {[%emt 0:01:09] C41: Philidor Defence} d5 {[%emt 0:02:20]} (9... Nc6 10. Kb1 Nxd4 11. Bxd4 Be6 12. Nd5 Bxd5 13. exd5 c5 14. dxc6 bxc6 15. g4 d5 16. h4 Rb8 17. b3 Qd6 18. h5 {0-1 (53) Saric,I (2695)-Mamedov,R (2703) St Petersburg 2018}) 10. Nb3 {[%emt 0:02:25]} c6 {[%emt 0:04:44]} 11. Bg5 {[%emt 0:01:14]} a5 $146 {[%emt 0:04:44]} ({Predecessor:} 11... Qd6 12. exd5 cxd5 13. Nxd5 Nxd5 14. Qxd5 Qxd5 15. Rxd5 Be6 16. Rd1 Nc6 {1-0 (31) Ahmed,S (2186)-Uten (2086) Dhaka 2019}) 12. a4 {[%emt 0:05:53]} b5 {[%emt 0:03:45]} 13. exd5 {[%emt 0:03:17]} ({Of course not} 13. axb5 $6 a4 $11) 13... bxa4 {[%emt 0:08:44] [#]} 14. Nxa4 {[%emt 0:00:18]} (14. dxc6 $1 $16 Nxc6 15. Bb5 (15. Nxa4 Qxd2+ 16. Bxd2 Rb8 $16) 15... axb3 16. Bxc6) 14... cxd5 {[%emt 0:09:31]} 15. Nbc5 {[%emt 0:05:39]} Nbd7 {[%emt 0:11:17]} 16. Bb5 {[%emt 0:17:37]} Rb8 {[%emt 0:02:44]} 17. Bxd7 {[%emt 0:04:16]} Bxd7 {[%emt 0:00:45]} 18. Bxf6 {[%emt 0:00:55]} Bxf6 {[%emt 0:02:36]} 19. Qxd5 {[%emt 0:00:07]} Bg5+ {[%emt 0:05:34]} 20. Kb1 {[%emt 0:00:34]} Bxa4 {[%emt 0:00:06]} 21. Nxa4 {[%emt 0:00:27]} Qf6 {[%emt 0:01:09]} 22. Rhe1 {[%emt 0:04:06]} Rec8 {[%emt 0:04:41]} 23. Rd3 {[%emt 0:06:45]} Qf4 {[%emt 0:08:01]} 24. Rd4 {[%emt 0:01:48]} Qf6 {[%emt 0:00:08]} 25. Rde4 {[%emt 0:05:14]} ({Better is} 25. c3 $14) 25... Bh6 $11 {[%emt 0:02:29]} 26. Qxa5 {[%emt 0:01:29]} Qc6 {[%emt 0:02:04]} 27. R1e2 {[%emt 0:06:35]} Bf8 {[%emt 0:01:25]} 28. b3 {[%emt 0:06:00]} Rxb3+ {[%emt 0:01:11]} 29. Nb2 {[%emt 0:00:44]} Ra3 {[%emt 0:06:10]} 30. Ra4 {[%emt 0:00:18]} Rc3 {[%emt 0:01:50]} 31. Qa6 {[%emt 0:03:35]} Qc5 {[%emt 0:00:08]} 32. Qb7 {[%emt 0:04:29]} Qg1+ {[%emt 0:02:31]} 33. Ka2 {[%emt 0:00:10]} R3c7 {[%emt 0:02:09]} 34. Qd5 {[%emt 0:00:56]} Bg7 {[%emt 0:00:40]} 35. c4 {[%emt 0:01:00]} Qf1 {[%emt 0:01:23]} 36. Qd3 {[%emt 0:01:11]} Qg1 {[%emt 0:00:37]} 37. Nd1 {[%emt 0:01:38]} Bf6 {[%emt 0:00:49]} 38. Nc3 {[%emt 0:05:13]} Rb7 {[%emt 0:00:31]} 39. Qd1 {[%emt 0:00:43]} Qxh2 {[%emt 0:01:23]} 40. Ne4 {[%emt 0:01:30]} Be7 {[%emt 0:00:28]} 41. Qd5 {[%emt 0:05:03]} Qb8 {[%emt 0:02:51]} 42. c5 {[%emt 0:05:16]} Rd8 {[%emt 0:17:52]} 43. Qc4 {[%emt 0:00:43]} Qc7 {[%emt 0:06:33]} 44. Rc2 {[%emt 0:02:24]} Rdb8 {[%emt 0:01:32]} 45. Ra6 {[%emt 0:04:32]} Rb4 {[%emt 0:01:33]} 46. Qd5 {[%emt 0:04:29]} Rd8 {[%emt 0:00:34]} 47. Nc3 {[%emt 0:02:12]} Qc8 {[%emt 0:01:25]} 48. Ra7 {[%emt 0:00:39]} Rxd5 {[%emt 0:00:13]} 49. Nxd5 {[%emt 0:00:18]} Qe6 {[%emt 0:00:08]} 50. Ka3 {[%emt 0:00:04]} Rb7 {[%emt 0:01:47]} 51. Nxe7+ {[%emt 0:01:43]} Rxe7 {[%emt 0:00:02]} 52. Rxe7 {[%emt 0:00:22]} Qxe7 {[%emt 0:00:05]} 53. Ka4 {[%emt 0:00:17]} Qa7+ {[%emt 0:00:18]} 54. Kb5 {[%emt 0:00:29]} Qb7+ {[%emt 0:00:05]} 55. Kc4 {[%emt 0:00:11]} Qa6+ {[%emt 0:00:41]} 56. Kb4 {[%emt 0:01:00]} Qb7+ {[%emt 0:01:02]} 57. Kc4 {[%emt 0:00:06]} Kf8 {[%emt 0:00:24]} 58. Kd4 {[%emt 0:00:30]} Qb4+ {[%emt 0:00:24]} 59. Ke3 {[%emt 0:01:14]} Qb3+ {[%emt 0:00:12]} 60. Kd2 {[%emt 0:00:07]} Qd5+ {[%emt 0:00:10]} 61. Ke3 {[%emt 0:00:06]} Qc6 {[%emt 0:00:27]} 62. Kd4 {[%emt 0:01:02]} Ke7 {[%emt 0:00:16]} 63. Re2+ {[%emt 0:01:05]} Kd7 {[%emt 0:00:07]} 64. Rc2 {[%emt 0:00:05]} Qa4+ {[%emt 0:00:18]} 0-1

[Event "SVK Extraliga 2019-20"]
[Site "Slovakia"]
[Date "2020.01.19"]
[Round "6.5"]
[White "Csonka, Attila Istvan"]
[Black "Pacher, Milan"]
[Result "1-0"]
[ECO "B33"]
[WhiteElo "2350"]
[BlackElo "2402"]
[Annotator "NA"]
[PlyCount "110"]
[EventDate "2019.10.19"]
[EventType "team-tourn"]
[EventCountry "SVK"]
[SourceTitle "playchess.com"]
[Source "ChessBase"]
[SourceQuality "1"]
[WhiteTeam "Streda"]
[BlackTeam "Slovan"]
[TimeControl "40/5400+30:1800+30"]

1. e4 {[%emt 0:00:00]} c5 {[%emt 0:04:43]} 2. Nf3 {[%emt 0:00:00]} Nc6 {[%emt 0:00:06]} 3. d4 {[%emt 0:00:00]} cxd4 {[%emt 0:00:03]} 4. Nxd4 {[%emt 0:00:00]} Nf6 {[%emt 0:00:03]} 5. Nc3 {[%emt 0:00:00]} e5 {[%emt 0:00:05]} 6. Ndb5 {[%emt 0:00:03]} d6 {[%emt 0:00:03]} 7. Bg5 {[%emt 0:00:08]} a6 {[%emt 0:00:03]} 8. Na3 {[%emt 0:00:06]} b5 {[%emt 0:00:04]} 9. Nd5 {[%emt 0:00:04]} Be7 {[%emt 0:00:04]} 10. Bxf6 {[%emt 0:00:07]} Bxf6 {[%emt 0:00:02]} 11. c4 {[%emt 0:00:08]} b4 {[%emt 0:00:04] B33: Sicilian: Pelikan and Sveshnikov Variations} 12. Nc2 {[%emt 0:00:05]} O-O {[%emt 0:00:05]} 13. g3 {[%emt 0:00:46]} a5 {[%emt 0:00:05]} 14. Bg2 {[%emt 0:00:24]} g6 {[%emt 0:00:47]} 15. O-O {[%emt 0:00:59]} Bg7 {[%emt 0:00:05]} 16. Qd3 {[%emt 0:00:34]} Rb8 {[%emt 0:06:09] [#]} 17. Rfd1 $146 {[%emt 0:03:38]} ({Predecessor:} 17. b3 Be6 18. Rfd1 Qd7 19. Qe2 {1-0 (41) Dominguez Perez,L (2720)-Lupulescu,C (2618) Baku 2016}) 17... Nd4 {[%emt 0:04:19]} 18. Nxd4 {[%emt 0:06:00]} exd4 {[%emt 0:00:04]} 19. Nf4 {[%emt 0:00:32]} Bg4 {[%emt 0:02:45]} 20. f3 {[%emt 0:01:33]} Be6 {[%emt 0:00:49]} 21. b3 {[%emt 0:01:29]} Qb6 {[%emt 0:11:55]} 22. Kh1 {[%emt 0:04:43]} Rbe8 {[%emt 0:02:08]} 23. Re1 {[%emt 0:05:45]} h5 {[%emt 0:04:37]} 24. Rad1 {[%emt 0:02:34]} h4 {[%emt 0:02:06]} 25. Ne2 {[%emt 0:03:37]} hxg3 {[%emt 0:10:37]} 26. hxg3 {[%emt 0:00:57]} Be5 {[%emt 0:00:44]} 27. f4 {[%emt 0:03:26]} Bf6 {[%emt 0:00:06]} 28. Nxd4 {[%emt 0:00:55]} Bg4 {[%emt 0:00:06]} 29. Rd2 {[%emt 0:03:12]} Kg7 {[%emt 0:01:04] [#]} 30. Qe3 $11 {[%emt 0:00:11]} (30. Kg1 $1 $16) 30... Qc5 {[%emt 0:12:28]} 31. e5 {[%emt 0:04:16]} Rh8+ {[%emt 0:01:57]} 32. Kg1 {[%emt 0:00:06]} Bd8 {[%emt 0:00:14]} 33. Nc2 {[%emt 0:02:24]} Bb6 {[%emt 0:00:43]} 34. Rxd6 {[%emt 0:04:38]} Qxd6 {[%emt 0:08:31]} 35. exd6 {[%emt 0:01:23]} Bxe3+ {[%emt 0:00:14]} 36. Nxe3 {[%emt 0:01:05]} Be6 {[%emt 0:09:32]} 37. c5 {[%emt 0:03:17]} a4 {[%emt 0:00:49]} 38. c6 {[%emt 0:01:33]} axb3 {[%emt 0:00:15]} 39. axb3 {[%emt 0:00:04]} Rd8 {[%emt 0:06:26]} 40. Rd1 {[%emt 0:03:36]} Bxb3 {[%emt 0:00:38]} 41. Rd4 {[%emt 0:30:04]} Be6 {[%emt 0:36:19]} 42. c7 {[%emt 0:02:40]} Rde8 {[%emt 0:00:06]} 43. Rxb4 {[%emt 0:02:11]} Bd7 {[%emt 0:00:05]} 44. Kf2 {[%emt 0:05:56]} Rh2 {[%emt 0:00:00]} 45. Rb8 {[%emt 0:00:00]} Rhh8 {[%emt 0:00:00]} 46. Rxe8 {[%emt 0:00:00]} Rxe8 {[%emt 0:00:00]} 47. Nc4 {[%emt 0:00:00]} Kf6 {[%emt 0:00:00]} 48. Bd5 {[%emt 0:00:00]} Bg4 {[%emt 0:00:00]} 49. Ne5 {[%emt 0:00:00]} Rxe5 {[%emt 0:00:00]} 50. fxe5+ {[%emt 0:00:00]} Kxe5 {[%emt 0:00:00]} 51. Bb7 {[%emt 0:00:00]} Kxd6 {[%emt 0:00:00]} 52. c8=Q {[%emt 0:00:00]} Bxc8 {[%emt 0:00:00]} 53. Bxc8 {[%emt 0:00:00]} Ke5 {[%emt 0:00:00]} 54. Kf3 {[%emt 0:00:00]} Kf6 {[%emt 0:00:00]} 55. Kf4 {[%emt 0:00:00]} Kg7 {[%emt 0:00:00]} 1-0

[Event "SVK Extraliga 2019-20"]
[Site "Slovakia"]
[Date "2020.01.19"]
[Round "6.5"]
[White "Dovzik, Juri"]
[Black "Plachetka, Jan"]
[Result "1-0"]
[ECO "A33"]
[WhiteElo "2273"]
[BlackElo "2301"]
[Annotator "ChessBase"]
[PlyCount "53"]
[EventDate "2019.10.19"]
[EventType "team-tourn"]
[EventCountry "SVK"]
[SourceTitle "playchess.com"]
[Source "ChessBase"]
[SourceQuality "1"]
[WhiteTeam "Košice"]
[BlackTeam "Liptovska"]
[TimeControl "40/5400+30:1800+30"]

1. c4 {[%emt 0:00:17]} c5 {[%emt 0:00:01]} 2. Nf3 {[%emt 0:00:56]} Nc6 {[%emt 0:00:53]} 3. d4 {[%emt 0:00:17]} cxd4 {[%emt 0:00:29]} 4. Nxd4 {[%emt 0:00:05]} Nf6 {[%emt 0:00:38]} 5. Nc3 {[%emt 0:00:36]} e6 {[%emt 0:00:39]} 6. a3 {[%emt 0:06:24]} Be7 {[%emt 0:03:01]} 7. e4 {[%emt 0:02:45]} d6 {[%emt 0:00:58]} 8. Be2 {[%emt 0:01:42]} O-O {[%emt 0:00:19]} 9. O-O {[%emt 0:00:29]} a6 {[%emt 0:00:25]} 10. Be3 {[%emt 0:02:01]} Bd7 {[%emt 0:01:19]} 11. f3 {[%emt 0:13:23]} Rc8 {[%emt 0:03:22]} 12. Nb3 {[%emt 0:00:24]} Ne5 {[%emt 0:01:35]} 13. Nd2 {[%emt 0:00:05]} Re8 {[%emt 0:02:01]} 14. Kh1 {[%emt 0:19:30]} Bc6 {[%emt 0:03:21]} 15. Bg1 {[%emt 0:01:05]} Ng6 {[%emt 0:03:56]} 16. Re1 {[%emt 0:08:32]} d5 {[%emt 0:09:42]} 17. cxd5 {[%emt 0:01:04]} exd5 {[%emt 0:00:07]} 18. exd5 {[%emt 0:00:57]} Nxd5 {[%emt 0:00:20]} 19. Nde4 {[%emt 0:05:53]} Bh4 {[%emt 0:04:52]} 20. Ng3 {[%emt 0:08:14]} Nxc3 {[%emt 0:02:48]} 21. bxc3 {[%emt 0:00:03]} Qg5 {[%emt 0:11:21]} 22. Bf2 {[%emt 0:07:44]} Nf4 {[%emt 0:03:18]} 23. Bf1 {[%emt 0:04:14]} Red8 {[%emt 0:01:29]} 24. Qc1 {[%emt 0:04:31]} h5 {[%emt 0:11:01]} 25. Ne4 {[%emt 0:01:23]} Bxe4 {[%emt 0:10:19]} 26. Bxh4 {[%emt 0:00:33]} Qxh4 {[%emt 0:00:10]} 27. Rxe4 {[%emt 0:00:08]} 1-0